{"text_format":"1","workbook":"xlsx","n_sheets":4,"sheets":["CLASSIFICAÇÃO GERAL 2024","out2024","nov2024","dez2024"],"not_rendered":{"charts":0,"images":2,"macros":1,"external_links":0,"defined_names":1,"comments":0,"pivot_tables":0},"unopened":[],"bounds":{"document_bytes":16777216,"sheet_cells":100000,"rows_first":2000,"rows_last":500,"rows_between":2000,"halvings":0,"cell_chars":16384,"cell_head_chars":4096},"cells_cut":0,"cells_raw":0,"read":"whole","date_system":"1900"}

{"sheet":"CLASSIFICAÇÃO GERAL 2024","index":0,"n_rows":123,"n_cols":5,"rows_kept":123,"cut":false,"hidden":false,"merged":[[0,0,0,4],[1,0,1,4]]}
["CLASSIFICAÇÃO GERAL ACPA – TEMPORADA 2024 QUARTA"]
["COLEIRO FIBRA","Pássaro","Proprietário","Origem","Pontos"]
["POSIÇÃO","NOME DO PÁSSARO","NOME DO PROPRIETÁRIO","ORIGEM (CIDADE)","PONTUAÇÃO"]
["1º","TREM","MARCO AURÉLIO","PARAÍBA DO SUL",{"$f":"30+30+14+25+30+14","v":143}]
["2º","MALVADÃO","RODRIGO GONÇALVES","PETRÓPOLIS",{"$f":"14+12+7+2+20+3+20+10+10+3","v":101}]
["3º","REI DA RUA","ANDRÉ LUIS","PARAÍBA DO SUL",{"$f":"30+30+30","v":90}]
["4º","CARTOLA","FABIANO","TRÊS RIOS",{"$f":"17+17+2+6+20+8","v":70}]
["5º","JAMELÃO","FAMÍLIA MINGAL","PARAÍBA DO SUL",{"$f":"14+20+12+4","v":50}]
["6º","PEPE","EULER","TRÊS RIOS",{"$f":"30+20","v":50}]
["7º","BARBA NEGRA","REINALDO","JUIZ DE FORA",{"$f":"17+25","v":42}]
["8º","RAIO DE FOGO","GUSTAVO","ANTA",{"$f":"25+17","v":42}]
["9º","TREME TERRA","JOÃO MARCOS","AREAL",{"$f":"20+7+14","v":41}]
["10º","FERRARI","REGINALDO","PETRÓPOLIS",{"$f":"25+5+7","v":37}]
["11º","GRÃO VIZIR","CICINHO","PARAÍBA DO SUL",{"$f":"2+7+8+17","v":34}]
["12º","GRINGO","HIGO BATALHA","TRÊS RIOS",{"$f":"7+10+17","v":34}]
["13º","MATADOR","GABRIEL MARTINS","PARAÍBA DO SUL",{"$f":"30+3","v":33}]
["14º","MAGO","RAMON/IGOR","ANTA",{"$f":"20+12","v":32}]
["15º","ROMÁRIO","MÁRCIO","PARAÍBA DO SUL",{"$f":"20+12","v":32}]
["16º","BRUTAL","PEDRO/DANIEL","JUIZ DE FORA",30]
["17º","JHON TEXTOR","MÁRCIO","PARAÍBA DO SUL",30]
["18º","BMW","JOTA","PARAÍBA DO SUL",{"$f":"14+14","v":28}]
["19º","DOIDO","WILLIAM","TRÊS RIOS",{"$f":"14+6+6","v":26}]
["20º","BRUTAL","PEDRO/DANIEL","JUIZ DE FORA",25]
["21º","EXPLODE CORAÇÃO","FIGUEIREDO","PARAÍBA DO SUL",25]
["22º","LAMPIÃO","LUIS/ZECA","PATY DO ALFERES",25]
["23º","REALEZA","VINÍCIUS","AREAL",25]
["24º","SURREAL","GABRIEL","PARAÍBA DO SUL",25]
["25º","VINTE DOIS","ALISSON","TRÊS RIOS",25]
["26º","SOBRENATURAL","FAMÍLIA MINGAL","PARAÍBA DO SUL",{"$f":"1+17+5","v":23}]
["27º","LA PULGA","VINÍCIUS","MAR DE ESPANHA",{"$f":"17+5","v":22}]
["28º","MENTOR","JOÃO MARCOS","AREAL",{"$f":"10+12","v":22}]
["29º","ASTRO","FAMÍLIA MINGAL","PARAÍBA DO SUL",{"$f":"12+7+2","v":21}]
["30º","LAMBADA","DANIEL","TRÊS RIOS",20]
["31º","MATUÊ","RODRIGO GONÇALVES","PETRÓPOLIS",{"$f":"7+6+7","v":20}]
["32º","OVERDOSE","GABRIEL BRUM","AVELAR",20]
["33º","ZÉ PEQUENO","REINALDO","JUIZ DE FORA",{"$f":"14+5","v":19}]
["34º","B. NEGRA","REINALDO","JUIZ DE FORA",17]
["35º","LINHA AMARELA","HENRIQUE","ANTA",17]
["36º","WALTER","JONAS RICARDO","TRÊS RIOS",{"$f":"6+10","v":16}]
["37º","BOLT","ALEXANDRE","SOUZA AGUIAR",{"$f":"10+5","v":15}]
["38º","CARA DE COBRA","LUCIMAR/LUIZ HENRIQUE","TRÊS RIOS",14]
["39º","MALUCO","CESAR MANDÍBULA","PETRÓPOLIS",14]
["40º","NOTA FISCAL","JANDERSON","TRÊS RIOS",12]
["41º","PARDAL","FAMÍLIA MINGAL","PARAÍBA DO SUL",12]
["42º","REI","FELIPE LIMA/RATINHO","VALENÇA",12]
["43º","TIRINGA","ROBIM/DIEGO","SÃO JOSÉ",12]
["44º","BICO DE OURO","JOÃO MARCOS","AREAL",10]
["45º","CLONE","CESAR MANDÍBULA","PETRÓPOLIS",10]
["46º","GOGOLO","DOUGLAS/LUCAS","JUIZ DE FORA",10]
["47º","SIMÃO 835","SIMÃO KALIFE","TRÊS RIOS",10]
["48º","SINISTRO","MATEUS MEDEIROS","PARAÍBA DO SUL",{"$f":"8+2","v":10}]
["49º","RAGNAR","EDILSON PAVÃO","PETRÓPOLIS",{"$f":"3+6","v":9}]
["50º","VENON","MURILO","TRÊS RIOS",{"$f":"4+5","v":9}]
["51º","CARIOQUINHA","JONAS RICARDO","TRÊS RIOS",8]
["52º","FÓRMULA 1","GILSON","SANTOS DUMONT",8]
["53º","FRAJOLA","JUNINHO","TRÊS RIOS",8]
["54º","GAROTO","BRUNO","TRÊS RIOS",8]
["55º","LOTUS","DANIEL","JUIZ DE FORA",8]
["56º","TADALA","GABRIEL BRUM","AVELAR",8]
["57º","TRUQUE","REGINALDO","PETRÓPOLIS",8]
["58º","BONES","EDI WILSON","PETRÓPOLIS",7]
["59º","COMANDANTE","FELIPE RATINHO","VALENÇA",7]
["60º","GENERAL","FAMÍLIA MINGAL","PARAÍBA DO SUL",{"$f":"3+4","v":7}]
["61º","PÂNICO","JUNINHO","TRÊS RIOS",7]
["62º","JANJOLÃO","JONAS RICARDO","TRÊS RIOS",6]
["63º","KURIRIM","EULER","TRÊS RIOS",6]
["64º","REI ARTHUR","ALEX LAMA","PARAÍBA DO SUL",6]
["65º","OROCHI","NATHAN","LEVY GASPARIAN",5]
["66º","PESADELO","ALEX LAMA","PARAÍBA DO SUL",5]
["67º","PRESENTE","RUAN","MAR DE ESPANHA",5]
["68º","TIÃO","JONAS RICARDO","TRÊS RIOS",5]
["69º","CAIPIRA","ELINALDO","PATY DO ALFERES",4]
["70º","DENDE","GABRIEL BRUM","AVELAR",4]
["71º","FANTÁSTICO","JOSÉ SERGIO","PARAÍBA DO SUL",4]
["72º","MAGIA","JORGE MUNIZ","SAPUCAIA",4]
["73º","NOVINHO","JANDERSON","TRÊS RIOS",4]
["74º","PROFESSOR","FAMÍLIA MINGAL","PARAÍBA DO SUL",4]
["75º","SAGAT","GUSTAVO","PARAÍBA DO SUL",{"$f":"2+2","v":4}]
["76º","220 WOLTS","YGOR TARDELLI","BEMPOSTA",3]
["77º","A LENDA","STENIO GOMES","MATIAS BARBOSA",3]
["78º","BAIXARIA","RAUANI VALLE","TRÊS RIOS",3]
["79º","ESPOLETA","GABRIEL BRUM","AVELAR",3]
["80º","MAESTRO","MARCIO","PARAÍBA DO SUL",3]
["81º","CAPITÃO","JOSÉ SERGIO","PARAÍBA DO SUL",2]
["82º","CHAVES","GUSTAVO","VALENÇA",2]
["83º","LAS VEGAS","JONATAN","MATIAS BARBOSA",2]
["84º","BESTEIRINHA","EULER","TRÊS RIOS",1]
["85º","BOLNIÃO","ALEX LAMA","PARAÍBA DO SUL",1]
["86º","CHUMBINHO","GUSTAVO SALOMÃO","TRÊS RIOS",1]
["87º","MALAGUETA","MURILLO","MORRO AZUL",1]
["88º","PALADINO","LUCAS","TRÊS RIOS",1]
["89º","PLAY BOY","CRISTIAN","TRÊS RIOS",1]
["90º","SEM UNHA","VITINHO","MATIAS BARBOSA",1]
["91º","ZORRO","JORGE MUNIZ","SAPUCAIA",1]
["92º"]
["93º"]
["94º"]
["95º"]
["96º"]
["97º"]
["98º"]
["99º"]
["100º"]
["101º"]
["102º"]
["103º"]
["104º"]
["105º"]
["106º"]
["107º"]
["108º"]
["109º"]
["110º"]
["111º"]
["112º"]
["113º"]
["114º"]
["115º"]
["116º"]
["117º"]
["118º"]
["119º"]
["120º"]

{"sheet":"out2024","index":1,"n_rows":42,"n_cols":27,"rows_kept":42,"cut":false,"hidden":false,"merged":[[0,0,0,5],[0,7,0,12],[0,14,0,19],[0,21,0,26]]}
["09/10/2024 (QUARTA-FEIRA)",null,null,null,null,null,null,"16/10/2024 (QUARTA-FEIRA)",null,null,null,null,null,null,"23/10/2024 (QUARTA-FEIRA)",null,null,null,null,null,null,"30/10/2024 (QUARTA-FEIRA)"]
["POS.","PÁSSARO","PROPRIETÁRIO","ORIGEM","CANTOS","PONTOS",null,"POS.","PÁSSARO","PROPRIETÁRIO","ORIGEM","CANTOS","PONTOS",null,"POS.","PÁSSARO","PROPRIETÁRIO","ORIGEM","CANTOS","PONTOS",null,"POS.","PÁSSARO","PROPRIETÁRIO","ORIGEM","CANTOS","PONTOS"]
["1º","REI DA RUA","ANDRÉ LUIS","PARAÍBA DO SUL",186,30,null,"1º","REI DA RUA","ANDRÉ LUIS","PARAÍBA DO SUL",206,30,null,"1º","PEPE","EULER","TRÊS RIOS",199,30,null,"1º","TREM","MARCO AURÉLIO","PARAÍBA DO SUL",216,30]
["2º","FERRARI","REGINALDO","PETRÓPOLIS",164,25,null,"2º","LAMPIÃO","LUIS/ZECA","PATY DO ALFERES",187,25,null,"2º","VINTE DOIS","ALISSON","TRÊS RIOS",163,25,null,"2º","RAIO DE FOGO","GUSTAVO","ANTA",153,25]
["3º","TREME TERRA","JOÃO MARCOS","AREAL",164,20,null,"3º","ROMÁRIO","MÁRCIO","PARAÍBA DO SUL",160,20,null,"3º","OVERDOSE","GABRIEL BRUM","AVELAR",155,20,null,"3º","MAGO","RAMON/IGOR","ANTA",152,20]
["4º","LINHA AMARELA","HENRIQUE","ANTA",158,17,null,"4º","RAIO DE FOGO","GUSTAVO","ANTA",156,17,null,"4º","SOBRENATURAL","FAMÍLIA MINGAL","PARAÍBA DO SUL",153,17,null,"4º","LA PULGA","VINÍCIUS","MAR DE ESPANHA",143,17]
["5º","MALVADAO","RODRIGO GONÇALVES","PETRÓPOLIS",135,14,null,"5º","MALUCO","CESAR MANDÍBULA","PETRÓPOLIS",150,14,null,"5º","TREME TERRA","JOÃO MARCOS","AREAL",146,14,null,"5º","DOIDO","WILLIAM","TRÊS RIOS",141,14]
["6º","NOTA FISCAL","JANDERSON","TRÊS RIOS",125,12,null,"6º","MALVADAO","RODRIGO GONÇALVES","PETRÓPOLIS",140,12,null,"6º","REI","FELIPE LIMA/RATINHO","VALENÇA",139,12,null,"6º","ASTRO","FAMÍLIA MINGAL","PARAÍBA DO SUL",136,12]
["7º","BOLT","ALEXANDRE","SOUZA AGUIAR",120,10,null,"7º","CLONE","CESAR MANDÍBULA","PETRÓPOLIS",135,10,null,"7º","GRINGO","HIGO BATALHA","TRÊS RIOS",139,10,null,"7º","BICO DE OURO","JOÃO MARCOS","AREAL",123,10]
["8º","SINISTRO","MATEUS MEDEIROS","PARAÍBA DO SUL",118,8,null,"8º","LOTUS","DANIEL","JUIZ DE FORA",129,8,null,"8º","TRUQUE","REGINALDO","PETRÓPOLIS",138,8,null,"8º","CARIOQUINHA","JONAS RICARDO","TRÊS RIOS",121,8]
["9º","GRINGO","HIGO BATALHA","TRÊS RIOS",116,7,null,"9º","TREME TERRA","JOÃO MARCOS","AREAL",129,7,null,"9º","MALVADÃO","RODRIGO GONÇALVES","PETRÓPOLIS",138,7,null,"9º","PÂNICO","JUNINHO","TRÊS RIOS",115,7]
["10º","ASTRO","FAMÍLIA MINGAL","PARAÍBA DO SUL",112,6,null,"10º","DOIDO","WILLIAM","TRÊS RIOS",126,6,null,"10º","RAGNAR","EDILSON PAVAO","PETRÓPOLIS",123,6,null,"10º","WALTER","JONAS RICARDO","TRÊS RIOS",114,6]
["11º","PRESENTE","RUAN","MAR DE ESPANHA",111,5,null,"11º","BOLT","ALEXANDRE","SOUZA AGUIAR",125,5,null,"11º","OROCHI","NATHAN","LEVY GASPARIAN",121,5,null,"11º","PESADELO","ALEX LAMA","PARAÍBA DO SUL",112,5]
["12º","MAGIA","JORGE MUNIZ","SAPUCAIA",98,4,null,"12º","BMW","JOÃO PEDRO","PARAÍBA DO SUL",125,4,null,"12º","VENON","MURILO","TRÊS RIOS",118,4,null,"12º","NOVINHO","JANDERSON","TRÊS RIOS",110,4]
["13º","220 WOLTS","YGOR TARDELLI","BEMPOSTA",92,3,null,"13º","RAGNAR","EDILSON PAVÃO","PETRÓPOLIS",121,3,null,"13º","A LENDA","STENIO GOMES","MATIAS BARBOSA",109,3,null,"13º","GENERAL","FAMÍLIA MINGAL","PARAÍBA DO SUL",107,3]
["14º","SAGAT","GUSTAVO","PARAÍBA DO SUL",88,2,null,"14º","SAGAT","GUSTAVO","PARAÍBA DO SUL",120,2,null,"14º","SINISTRO","MATEUS","PARAÍBA DO SUL",96,2,null,"14º","MALVADÃO","RODRIGO GONÇALVES","PETRÓPOLIS",106,2]
["15º","SOBRENATURAL","CARLOS HENRIQUE","PARAÍBA DO SUL",87,1,null,"15º","ASTRO","FAMÍLIA MINGAL","PARAÍBA DO SUL",116,1,null,"15º","PLAY BOY","CRISTIAN","TRÊS RIOS",95,1,null,"15º","MALAGUETA","MURILLO","MORRO AZUL",105,1]
["16º","ASSOMBROSO","JANDERSON","TRÊS RIOS",85,null,null,"16º","GAGUINHO","LUCIMAR/LUIZ HENRIQUE","TRÊS RIOS",105,null,null,"16º","FERRARI","REGINALDO","PETRÓPOLIS",92,null,null,"16º","NOTA 1.000","SANDRINHO","TRÊS RIOS",102]
["17º","MATUE","RODRIGO GONÇALVES","PETRÓPOLIS",80,null,null,"17º","PARDAL","FAMÍLIA MINGAL","PARAÍBA DO SUL",90,null,null,"17º","SUB ZERO","ALAN","MATIAS BARBOSA",86,null,null,"17º","BICO DOIDO","GUSTAVINHO","ANTA",94]
["18º","FILHOTE","CARLOS HENRIQUE","PARAÍBA DO SUL",67,null,null,"18º","TRUQUE","REGINALDO","PETROPOLIS",89,null,null,"18º","SAGAT","GUSTAVO","PARAÍBA DO SUL",83,null,null,"18º","PATETA","UELINTON","?",83]
["19º","TORPEDO","SANDRINHO","TRÊS RIOS",37,null,null,"19º","MARRETA","GUTO","PARAÍBA DO SUL",89,null,null,"19º","BATIDAO","SANDRINHO","TRÊS RIOS",75,null,null,"19º","TURBINADO","CAIO","PATY DO ALFERES",81]
["20º","PURO ÊXTASE","KLEBER","AREAL",20,null,null,"20º","FERRARI","REGINALDO","PETRÓPOLIS",88,null,null,"20º","PARDAL","FAMÍLIA MINGAL","PARAÍBA DO SUL",67,null,null,"20º","TADALA","GABRIEL BRUM","AVELAR",80]
["21º",null,null,null,null,null,null,"21º","FILHOTE","FAMÍLIA MINGAL","PARAÍBA DO SUL",83,null,null,"21º","JAMELAO","FAMÍLIA MINGAL","PARAÍBA DO SUL",55,null,null,"21º","BLACK OUT","LUCAS MACHADO","BEMPOSTA",80]
["22º",null,null,null,null,null,null,"22º","ESCÂNDALO","RODRIGO GONÇALVES","PETRÓPOLIS",78,null,null,"22º","WALTER","JONAS RICARDO","TRÊS RIOS",50,null,null,"22º","ENIGMA","DUDU","TRÊS RIOS",77]
["23º",null,null,null,null,null,null,"23º","SOBRENATURAL","FAMÍLIA MINGAL","PARAÍBA DO SUL",74,null,null,"23º","ZIDANE","CLODOALDO","TRÊS RIOS",46,null,null,"23º","SAGAT","GUSTAVO","PARAÍBA DO SUL",75]
["24º",null,null,null,null,null,null,"24º","LA PULGA","VINÍCIUS MENDES","MAR DE ESPANHA",73,null,null,"24º","NOVIDADE","CARLOS ALBERTO","JUIZ DE FORA",33,null,null,"24º","RELÂMPAGO","JANDERSON","TRÊS RIOS",67]
["25º",null,null,null,null,null,null,"25º","BOCA LOUKA","CÉSAR MANDÍBULA","PETRÓPOLIS",62,null,null,"25º",null,null,null,null,null,null,"25º","FERRARI","REGINALDO","PETRÓPOLIS",64]
["26º",null,null,null,null,null,null,"26º","BICO BRANCO","JOÃO MARCOS","AREAL",59,null,null,"26º",null,null,null,null,null,null,"26º","FAÍSCA","GUSTAVINHO/JOÃO","ANTA",64]
["27º",null,null,null,null,null,null,"27º","PQD","GILSON","SANTOS DUMONT",51,null,null,"27º",null,null,null,null,null,null,"27º","PARDAL","FAMÍLIA MINGAL","PARAÍBA DO SUL",60]
["28º",null,null,null,null,null,null,"28º","VINTE DOIS","ALISSON","TRÊS RIOS",22,null,null,"28º",null,null,null,null,null,null,"28º"]
["29º",null,null,null,null,null,null,"29º",null,null,null,null,null,null,"29º",null,null,null,null,null,null,"29º"]
["30º",null,null,null,null,null,null,"30º",null,null,null,null,null,null,"30º",null,null,null,null,null,null,"30º"]
["31º",null,null,null,null,null,null,"31º",null,null,null,null,null,null,"31º",null,null,null,null,null,null,"31º"]
["32º",null,null,null,null,null,null,"32º",null,null,null,null,null,null,"32º",null,null,null,null,null,null,"32º"]
["33º",null,null,null,null,null,null,"33º",null,null,null,null,null,null,"33º",null,null,null,null,null,null,"33º"]
["34º",null,null,null,null,null,null,"34º",null,null,null,null,null,null,"34º",null,null,null,null,null,null,"34º"]
["35º",null,null,null,null,null,null,"35º",null,null,null,null,null,null,"35º",null,null,null,null,null,null,"35º"]
["36º",null,null,null,null,null,null,"36º",null,null,null,null,null,null,"36º",null,null,null,null,null,null,"36º"]
["37º",null,null,null,null,null,null,"37º",null,null,null,null,null,null,"37º",null,null,null,null,null,null,"37º"]
["38º",null,null,null,null,null,null,"38º",null,null,null,null,null,null,"38º",null,null,null,null,null,null,"38º"]
["39º",null,null,null,null,null,null,"39º",null,null,null,null,null,null,"39º",null,null,null,null,null,null,"39º"]
["40º",null,null,null,null,null,null,"40º",null,null,null,null,null,null,"40º",null,null,null,null,null,null,"40º"]

{"sheet":"nov2024","index":2,"n_rows":42,"n_cols":20,"rows_kept":42,"cut":false,"hidden":false,"merged":[[0,0,0,5],[0,7,0,12],[0,14,0,19]]}
["13/11/2024 (QUARTA-FEIRA)",null,null,null,null,null,null,"20/11/2024 (QUARTA-FEIRA)",null,null,null,null,null,null,"27/11/2024 (QUARTA-FEIRA)"]
["POS.","PÁSSARO","PROPRIETÁRIO","ORIGEM","CANTOS","PONTOS",null,"POS.","PÁSSARO","PROPRIETÁRIO","ORIGEM","CANTOS","PONTOS",null,"POS.","PÁSSARO","PROPRIETÁRIO","ORIGEM","CANTOS","PONTOS"]
["1º","TREM","MARCO AURÉLIO","PARAÍBA DO SUL",210,30,null,"1º","MATADOR","GABRIEL MARTINS","PARAÍBA DO SUL","77/185",30,null,"1º","JHON TEXTOR","MÁRCIO","PARAÍBA DO SUL",187,30]
["2º","SURREAL","GABRIEL","PARAÍBA DO SUL",207,25,null,"2º","REALEZA","VINÍCIUS","AREAL","79/170",25,null,"2º","TREM","MARCO AURÉLIO","PARAÍBA DO SUL",158,25]
["3º","MALVADÃO","RODRIGO GONÇALVES","PETRÓPOLIS",159,20,null,"3º","PEPE","EULER","TRÊS RIOS","114/169",20,null,"3º","MALVADÃO","RODRIGO GONÇALVES","PETRÓPOLIS",142,20]
["4º","CARTOLA","FABIANO","TRÊS RIOS",154,17,null,"4º","CARTOLA","FABIANO","TRÊS RIOS","63/167",17,null,"4º","B. NEGRA","REINALDO","JUIZ DE FORA",140,17]
["5º","BMW","JOTA","PARAÍBA DO SUL",150,14,null,"5º","TREM","MARCO AURÉLIO","PARAÍBA DO SUL","49/141",14,null,"5º","JAMELÃO","FAMÍLIA MINGAL","PARAÍBA DO SUL",138,14]
["6º","PARDAL","FAMÍLIA MINGAL","PARAÍBA DO SUL",140,12,null,"6º","TIRINGA","ROBIM/DIEGO","SÃO JOSÉ","110/131",12,null,"6º","MAGO","YGOR/RAMON","ANTA",135,12]
["7º","MENTOR","JOÃO MARCOS","AREAL",135,10,null,"7º","WALTER","JONAS RICARDO","TRÊS RIOS","99/130",10,null,"7º","SIMÃO 835","SIMÃO KALIFE","TRÊS RIOS",134,10]
["8º","TADALA","GABRIEL BRUM","AVELAR",134,8,null,"8º","GAROTO","BRUNO","TRÊS RIOS","41/115",8,null,"8º","FÓRMULA 1","GILSON","SANTOS DUMONT",127,8]
["9º","MATUE","RODRIGO GONÇALVES","PETRÓPOLIS",128,7,null,"9º","COMANDANTE","FELIPE RATINHO","VALENÇA","73/114",7,null,"9º","GRÃO VIZIR","CICINHO","PARAÍBA DO SUL",123,7]
["10º","DOIDO","WILLIAM","TRÊS RIOS",123,6,null,"10º","KURIRIM","EULER","TRÊS RIOS","73/110",6,null,"10º","JANJOLÃO","JONAS RICARDO","TRÊS RIOS",121,6]
["11º","SOBRENATURAL","FAMÍLIA MINGAL","PARAÍBA DO SUL",119,5,null,"11º","FERRARI","REGINALDO","PETRÓPOLIS","73/108",5,null,"11º","LA PULGA","VINÍCIUS","MAR DE ESPANHA",118,5]
["12º","CAIPIRA","ELINALDO","PATY DO ALFERES",114,4,null,"12º","DENDE","GABRIEL BRUM","AVELAR","99/107",4,null,"12º","GENERAL","FAMÍLIA MINGAL","PARAÍBA DO SUL",117,4]
["13º","MAESTRO","MARCIO","PARAÍBA DO SUL",108,3,null,"13º","MALVADÃO","RODRIGO GONÇALVES","PETRÓPOLIS","93/105",3,null,"13º","MATADOR","GABRIEL MARTINS","PARAÍBA DO SUL",116,3]
["14º","LAS VEGAS","JONATAN","MATIAS BARBOSA",107,2,null,"14º","GRÃO VIZIR","CICINHO","PARAÍBA DO SUL","72/105",2,null,"14º","CARTOLA","FABIANO","TRÊS RIOS",116,2]
["15º","BOLNIÃO","ALEX LAMA","PARAÍBA DO SUL",107,1,null,"15º","CHUMBINHO","GUSTAVO SALOMÃO","TRÊS RIOS","79/104",1,null,"15º","ZORRO","JORGE MUNIZ","SAPUCAIA",115,1]
["16º","JAMELÃO","FAMÍLIA MINGAL","PARAÍBA DO SUL",102,null,null,"16º","INCRÍVEL","MUTUM","JUIZ DE FORA","63/102",null,null,"16º","COMANDANTE","FELIPE RATINHO","VALENÇA",112]
["17º","DENDÊ","GABRIEL BRUM","AVELAR",96,null,null,"17º","MÁGICO","FÁBIO","TRÊS RIOS","43/104",null,null,"17º","CABALA","SANDRINHO","TRÊS RIOS",112]
["18º","V6","MARCOS VINÍCIUS","PARAÍBA DO SUL",96,null,null,"18º","VENON","MURILO","TRÊS RIOS","83/102",null,null,"18º","MATUÊ","RODRIGO GONÇALVES","PETRÓPOLIS",109]
["19º","MARRETA","GUTO","PARAÍBA DO SUL",96,null,null,"19º","DINAMITE","JONATAS DENTINHO","PARAÍBA DO SUL","BANHO/101",null,null,"19º","WALTER","JONAS RICARDO","TRÊS RIOS",108]
["20º","FERRARI","REGINALDO","PETRÓPOLIS",92,null,null,"20º","SOBRENATURAL","FAMÍLIA MINGAL","PARAÍBA DO SUL","62/97",null,null,"20º","PIPOCA","LUCIM/LUIZ HENRIQUE","TRÊS RIOS",103]
["21º","MENOR","CLOVIS","TRÊS RIOS",90,null,null,"21º","BOLINHA","LUCIANO","PARAÍBA DO SUL","68/94",null,null,"21º","SOBRENATURAL","FAMÍLIA MINGAL","PARAÍBA DO SUL",102]
["22º","PELE","WILLIAM","TRÊS RIOS",88,null,null,"22º","SIMÃO 850","SIMÃO KALIFE","TRÊS RIOS","70/93",null,null,"22º","SONIC","JANDERSON","TRÊS RIOS",95]
["23º","NENE DNA","VINÍCIUS DNA","PETRÓPOLIS",85,null,null,"23º","SARRAFFO","JOÃOZINHO","TRÊS RIOS","40/93",null,null,"23º","REI","FELIPE RATINHO","VALENÇA",92]
["24º","GRÃO VIZIR","CICINHO","PARAÍBA DO SUL",84,null,null,"24º","BARRA PESADA","HENRIQUE","TRÊS RIOS","32/93",null,null,"24º","LA ELE","GABRIEL BRUM","AVELAR",90]
["25º","AK TROVÃO","JOSÉ SERGIO","PARAÍBA DO SUL",79,null,null,"25º","JAMELÃO","FAMÍLIA MINGAL","PARAÍBA DO SUL","92/88",null,null,"25º","TRUQUE","REGINALDO","PETRÓPOLIS",84]
["26º","GRANADA","CARLOS ALBERTO","?",61,null,null,"26º","PALHAÇO","PAULINHO","TRÊS RIOS","54/88",null,null,"26º","FERRARI","REGINALDO","PETROPOLIS",81]
["27º","BICO DE OURO","DOUGLAS","JUIZ DE FORA",58,null,null,"27º","GENERAL","FAMÍLIA MINGAL","PARAÍBA DO SUL","66/86",null,null,"27º","WALTER","JONAS RICARDO","TRÊS RIOS",81]
["28º","NETIFLIX","BIDU","PATY DO ALFERES",58,null,null,"28º","SIMÃO 835","SIMÃO KALIFE","TRÊS RIOS","62/85",null,null,"28º","EXPLODE CORAÇÃO","FERNANDO","PARAÍBA DO SUL",77]
["29º","CAVEIRÃO","CLOVIS","TRÊS RIOS",49,null,null,"29º","TRUQUE","REGINALDO","PETRÓPOLIS","60/83",null,null,"29º","PELE","WILLIAM","TRÊS RIOS",68]
["30º","ZIDANE","CLODOALDO","TRÊS RIOS",48,null,null,"30º","PIVETE","LOIRINHO","PARAÍBA DO SUL","36/83",null,null,"30º","PICA PAU","ADÃO","TRÊS RIOS",59]
["31º",null,null,null,null,null,null,"31º","ASTRO","FAMÍLIA MINGAL","PARAÍBA DO SUL","78/81",null,null,"31º"]
["32º",null,null,null,null,null,null,"32º","SAGAT","GUSTAVO","PARAÍBA DO SUL","58/80",null,null,"32º"]
["33º",null,null,null,null,null,null,"33º","ALTAS HORAS","RAFAEL DIAS","PARAÍBA DO SUL","32/80",null,null,"33º"]
["34º",null,null,null,null,null,null,"34º","FERA","JESSÉ JÚNIOR","TRÊS RIOS","30/80",null,null,"34º"]
["35º",null,null,null,null,null,null,"35º","MATUE","RODRIGO GONÇALVES","PETRÓPOLIS","44/77",null,null,"35º"]
["36º",null,null,null,null,null,null,"36º","BUDDY POKER","PEZÃO","TRÊS RIOS","44/59",null,null,"36º"]
["37º",null,null,null,null,null,null,"37º","BELGA","DHAGO","PARAÍBA DO SUL","60/42",null,null,"37º"]
["38º",null,null,null,null,null,null,"38º",null,null,null,null,null,null,"38º"]
["39º",null,null,null,null,null,null,"39º",null,null,null,null,null,null,"39º"]
["40º",null,null,null,null,null,null,"40º",null,null,null,null,null,null,"40º"]

{"sheet":"dez2024","index":3,"n_rows":42,"n_cols":27,"rows_kept":42,"cut":false,"hidden":false,"merged":[[0,0,0,5],[0,7,0,12],[0,14,0,19],[0,21,0,26]]}
["04/12/2024 (QUARTA-FEIRA)",null,null,null,null,null,null,"11/12/2024 (QUARTA-FEIRA)",null,null,null,null,null,null,"18/12/2024 (QUARTA-FEIRA)",null,null,null,null,null,null,"25/12/2024 (QUARTA-FEIRA)"]
["POS.","PÁSSARO","PROPRIETÁRIO","ORIGEM","CANTOS","PONTOS",null,"POS.","PÁSSARO","PROPRIETÁRIO","ORIGEM","CANTOS","PONTOS",null,"POS.","PÁSSARO","PROPRIETÁRIO","ORIGEM","CANTOS","PONTOS",null,"POS.","PÁSSARO","PROPRIETÁRIO","ORIGEM","CANTOS","PONTOS"]
["1º","TREM","MARCO AURÉLIO","PARAÍBA DO SUL",155,30,null,"1º","BRUTAL","PEDRO/DANIEL","JUIZ DE FORA",203,30,null,"1º","REI DA RUA","ANDRÉ LUIS","PARAÍBA DO SUL","124/206",30,null,"1º",null,null,null,null,30]
["2º","EXPLODE CORAÇÃO","FIGUEIREDO","PARAÍBA DO SUL",145,25,null,"2º","BARBA NEGRA","REINALDO","JUIZ DE FORA",167,25,null,"2º","BRUTAL","PEDRO/DANIEL","JUIZ DE FORA","91/189",25,null,"2º",null,null,null,null,25]
["3º","JAMELÃO","FAMÍLIA MINGAL","PARAÍBA DO SUL",145,20,null,"3º","CARTOLA","FABIANO","TRÊS RIOS",161,20,null,"3º","LAMBADA","DANIEL","TRÊS RIOS","158/174",20,null,"3º",null,null,null,null,20]
["4º","BARBA NEGRA","REINALDO","JUIZ DE FORA",137,17,null,"4º","GRINGO","HIGO BATALHA","TRÊS RIOS",145,17,null,"4º","GRÃO VIZIR","CICINHO","PARAÍBA DO SUL","100/173",17,null,"4º",null,null,null,null,17]
["5º","ZÉ PEQUENO","REINALDO","JUIZ DE FORA",131,14,null,"5º","CARA DE COBRA","LUCIMAR/LUIZ HENRIQUE","TRÊS RIOS",139,14,null,"5º","TREM","MARCO AURÉLIO","PARAÍBA DO SUL","105/171",14,null,"5º",null,null,null,null,14]
["6º","MENTOR","JOÃO MARCOS","AREAL",130,12,null,"6º","JAMELÃO","FAMÍLIA MINGAL","PARAÍBA DO SUL",132,12,null,"6º","ROMÁRIO","MÁRCIO","PARAÍBA DO SUL","104/167",12,null,"6º",null,null,null,null,12]
["7º","MALVADÃO","RODRIGO GONÇALVES","PETRÓPOLIS",127,10,null,"7º","MALVADÃO","RODRIGO GONÇALVES","PETRÓPOLIS",123,10,null,"7º","GOGOLO","DOUGLAS/LUCAS","JUIZ DE FORA","110/160",10,null,"7º",null,null,null,null,10]
["8º","GRÃO VIZIR","CICINHO","PARAÍBA DO SUL",126,8,null,"8º","FRAJOLA","JUNINHO","TRÊS RIOS",121,8,null,"8º","CARTOLA","FABIANO","TRÊS RIOS","97/150",8,null,"8º",null,null,null,null,8]
["9º","FERRARI","REGINALDO","PETRÓPOLIS",125,7,null,"9º","BONES","EDI WILSON","PETRÓPOLIS",118,7,null,"9º","MATUÊ","RODRIGO GONÇALVES","PETRÓPOLIS","90/150",7,null,"9º",null,null,null,null,7]
["10º","CARTOLA","FABIANO","TRÊS RIOS",105,6,null,"10º","MATUÊ","RODRIGO GONÇALVES","PETRÓPOLIS",114,6,null,"10º","REI ARTHUR","ALEX LAMA","PARAÍBA DO SUL","40/150",6,null,"10º",null,null,null,null,6]
["11º","VENON","MURILO","TRÊS RIOS",101,5,null,"11º","ZÉ PEQUENO","REINALDO","JUIZ DE FORA",113,5,null,"11º","TIÃO","JONAS RICARDO","TRÊS RIOS","83/137",5,null,"11º",null,null,null,null,5]
["12º","FANTÁSTICO","JOSÉ SERGIO","PARAÍBA DO SUL",98,4,null,"12º","PROFESSOR","FAMÍLIA MINGAL","PARAÍBA DO SUL",112,4,null,"12º","JAMELÃO","FAMÍLIA MINGAL","PARAÍBA DO SUL","92/134",4,null,"12º",null,null,null,null,4]
["13º","BAIXARIA","RAUANI VALLE","TRÊS RIOS",95,3,null,"13º","ESPOLETA","GABRIEL BRUM","AVELAR",109,3,null,"13º","MALVADÃO","RODRIGO GONÇALVES","PETRÓPOLIS","84/131",3,null,"13º",null,null,null,null,3]
["14º","ASTRO","FAMÍLIA MINGAL","PARAÍBA DO SUL",94,2,null,"14º","CAPITÃO","JOSÉ SERGIO","PARAÍBA DO SUL",107,2,null,"14º","CHAVES","GUSTAVO","VALENÇA","70/131",2,null,"14º",null,null,null,null,2]
["15º","SEM UNHA","VITINHO","MATIAS BARBOSA",86,1,null,"15º","PALADINO","LUCAS","TRÊS RIOS",105,1,null,"15º","BESTEIRINHA","EULER","TRÊS RIOS","67/131",1,null,"15º",null,null,null,null,1]
["16º","V6","MARCUS VINICIUS","PARAÍBA DO SUL",85,null,null,"16º","EXPLODE CORAÇÃO","FIGUEIREDO","PARAÍBA DO SUL",94,null,null,"16º","PALADINO","LUCAS","TRÊS RIOS","78/110",null,null,"16º"]
["17º","BESTEIRINHA","EULER","TRÊS RIOS",80,null,null,"17º","SOBRENATURAL","FAMÍLIA MINGAL","PARAÍBA DO SUL",90,null,null,"17º","TRAMONTINA","ANTERO","TRÊS RIOS","116/102",null,null,"17º"]
["18º","ÊXTASE NEM","KLEBER","AREAL",79,null,null,"18º","PICA PAU","ADÃO","TRÊS RIOS",79,null,null,"18º","REI","RATINHO","VALENÇA","87/100",null,null,"18º"]
["19º","PICA PAU","ADÃO","TRÊS RIOS",79,null,null,"19º","HULK","LUIS FERNANDO",null,48,null,null,"19º","SERROTE","GUSTAVO","VALENÇA","69/109",null,null,"19º"]
["20º","SOBRENATURAL","FAMÍLIA MINGAL","PARAÍBA DO SUL",71,null,null,"20º","GENERAL","FAMÍLIA MINGAL","PARAÍBA DO SUL",47,null,null,"20º","LAMBORGHINI","ALEXANDRE","SOUZA AGUIAR","67/93",null,null,"20º"]
["21º","TRUQUE","REGINALDO","PETRÓPOLIS",65,null,null,"21º",null,null,null,null,null,null,"21º","PROFESSOR","FAMÍLIA MINGAL","PARAÍBA DO SUL","105/92",null,null,"21º"]
["22º","PIVETE","LOIRINHO","PARAÍBA DO SUL",61,null,null,"22º",null,null,null,null,null,null,"22º","ARQUEIRO","SANÁBIO","VALENÇA","88/91",null,null,"22º"]
["23º","ENCANTADO","EULER","TRÊS RIOS",43,null,null,"23º",null,null,null,null,null,null,"23º","FERRARI","REGINALDO","PETRÓPOLIS","61/82",null,null,"23º"]
["24º",null,null,null,null,null,null,"24º",null,null,null,null,null,null,"24º","GRANADA","CARLOS ALBERTO","PARAÍBA DO SUL","83/69",null,null,"24º"]
["25º",null,null,null,null,null,null,"25º",null,null,null,null,null,null,"25º","SIMÃO 835","SIMÃO KALIFE","TRÊS RIOS","69/68",null,null,"25º"]
["26º",null,null,null,null,null,null,"26º",null,null,null,null,null,null,"26º",null,null,null,null,null,null,"26º"]
["27º",null,null,null,null,null,null,"27º",null,null,null,null,null,null,"27º",null,null,null,null,null,null,"27º"]
["28º",null,null,null,null,null,null,"28º",null,null,null,null,null,null,"28º",null,null,null,null,null,null,"28º"]
["29º",null,null,null,null,null,null,"29º",null,null,null,null,null,null,"29º",null,null,null,null,null,null,"29º"]
["30º",null,null,null,null,null,null,"30º",null,null,null,null,null,null,"30º",null,null,null,null,null,null,"30º"]
["31º",null,null,null,null,null,null,"31º",null,null,null,null,null,null,"31º",null,null,null,null,null,null,"31º"]
["32º",null,null,null,null,null,null,"32º",null,null,null,null,null,null,"32º",null,null,null,null,null,null,"32º"]
["33º",null,null,null,null,null,null,"33º",null,null,null,null,null,null,"33º",null,null,null,null,null,null,"33º"]
["34º",null,null,null,null,null,null,"34º",null,null,null,null,null,null,"34º",null,null,null,null,null,null,"34º"]
["35º",null,null,null,null,null,null,"35º",null,null,null,null,null,null,"35º",null,null,null,null,null,null,"35º"]
["36º",null,null,null,null,null,null,"36º",null,null,null,null,null,null,"36º",null,null,null,null,null,null,"36º"]
["37º",null,null,null,null,null,null,"37º",null,null,null,null,null,null,"37º",null,null,null,null,null,null,"37º"]
["38º",null,null,null,null,null,null,"38º",null,null,null,null,null,null,"38º",null,null,null,null,null,null,"38º"]
["39º",null,null,null,null,null,null,"39º",null,null,null,null,null,null,"39º",null,null,null,null,null,null,"39º"]
["40º",null,null,null,null,null,null,"40º",null,null,null,null,null,null,"40º",null,null,null,null,null,null,"40º"]